fUSD/lending_fUSD_20251117
["ID","MTS","AMOUNT","RATE_DAILY","PERIOD"]
[394217687,1763387438378,-150.0,0.00036165,7]
[394217688,1763387438391,-150.0,0.00036204,7]
[394217689,1763387438400,-150.0,0.00036204,7]
[394217690,1763387438410,-150.0,0.00036204,7]
[394217691,1763387438419,-150.0,0.00036204,7]
[394217692,1763387438430,-150.0,0.00036204,7]
[394217693,1763387438439,-150.0,0.00036204,7]
[394217694,1763387438449,-5399.59566545,0.00036215,2]
[394217695,1763387438462,-1856.434,0.00036215,2]
[394217703,1763387438531,-961.01,0.00036215,2]
[394217705,1763387438543,-644.25033455,0.00036215,2]
[394217707,1763387438553,-276.57,0.00036215,2]
[394217709,1763387438562,-150.0,0.00036243,7]
[394217711,1763387438571,-150.0,0.00036246,7]
[394217713,1763387438581,-150.0,0.00036248,7]
[394217715,1763387438590,-150.0,0.0003628,7]
[394217717,1763387438600,-150.0,0.00036316,7]
[394217719,1763387438610,-150.0,0.00036321,7]
[394217721,1763387438619,-150.0,0.00036331,7]
[394217723,1763387438629,-150.0,0.00036337,7]
[394217725,1763387438639,-150.0,0.00036377,7]
[394217727,1763387438649,-150.0,0.00036395,7]
[394217729,1763387438658,-150.0,0.00036399,7]
[394217731,1763387438668,-150.0,0.00036416,7]
[394217733,1763387438678,-150.0,0.00036426,7]
[394217735,1763387438687,-150.0,0.00036428,7]
[394217737,1763387438697,-150.0,0.00036433,7]
[394217740,1763387438707,-150.0,0.00036442,7]
[394217742,1763387438717,-560.0,0.00036468,3]
[394217744,1763387438726,-150.0,0.00036476,7]
[394217746,1763387438736,-494.98666337,0.00036488,2]
[394217804,1763387439372,-959.47333663,0.00036488,2]
[394217806,1763387439383,-313.44712542,0.00036488,30]
[394217808,1763387439395,-500.0,0.00036488,30]
[394217810,1763387439406,-24.579538,0.00036501,7]
[394217813,1763387439427,-125.420462,0.00036501,7]
[394217815,1763387439438,-150.0,0.00036514,7]
[394217817,1763387439448,-52.41955472,0.0003654,7]
[394217819,1763387439460,-97.58044528,0.0003654,7]
[394217822,1763387439473,-150.0,0.00036551,7]
[394217824,1763387439483,-150.0,0.00036554,7]
[394217826,1763387439493,-150.0,0.00036585,7]
[394217828,1763387439504,-150.0,0.00036585,7]
[394217830,1763387439514,-150.0,0.00036585,7]
[394217832,1763387439526,-150.0,0.00036585,7]
[394217834,1763387439536,-150.0,0.00036585,7]
[394217836,1763387439546,-150.0,0.00036603,7]
[394217838,1763387439555,-664.36,0.00036626,30]
[394217840,1763387439572,-150.0,0.00036632,7]
[394217842,1763387439586,-150.0,0.00036652,7]
[394217844,1763387439596,-150.0,0.0003667,7]
[394217846,1763387439605,-150.0,0.0003668,7]
[394217848,1763387439614,-150.0,0.00036692,7]
[394217850,1763387439623,-150.0,0.0003671,7]
[394217852,1763387439632,-1004.63,0.0003672,2]
[394217854,1763387439642,-150.0,0.00036724,7]
[394217856,1763387439651,-150.0,0.00036738,7]
[394217858,1763387439660,-150.0,0.00036755,7]
[394217860,1763387439670,-151.82,0.00036759,120]
[394217862,1763387439679,-150.0,0.00036765,7]
[394217864,1763387439688,-150.0,0.00036776,7]
[394217866,1763387439698,-150.0,0.0003678,7]
[394217868,1763387439707,-150.0,0.00036787,7]
[394217870,1763387439716,-151.0,0.000368,2]
[394217872,1763387439725,-151.0,0.000368,2]
[394217874,1763387439735,-151.0,0.000368,2]
[394217876,1763387439744,-151.0,0.000368,2]
[394217878,1763387439753,-151.0,0.000368,2]
[394217880,1763387439763,-151.0,0.000368,2]
[394217882,1763387439774,-151.0,0.000368,2]
[394217883,1763387439783,-151.0,0.000368,2]
[394217885,1763387439792,-151.0,0.000368,2]
[394217886,1763387439801,-151.0,0.000368,2]
[394217888,1763387439810,-257.54438633,0.000368,2]
[394217889,1763387439819,-151.0,0.000368,2]
[394217890,1763387439829,-151.0,0.000368,2]
[394217891,1763387439840,-151.0,0.000368,2]
[394217892,1763387439856,-151.0,0.000368,2]
[394217893,1763387439866,-151.0,0.000368,2]
[394217894,1763387439875,-151.0,0.000368,2]
[394217895,1763387439884,-151.0,0.000368,2]
[394217896,1763387439893,-151.0,0.000368,2]
[394217897,1763387439903,-151.0,0.000368,2]
[394217898,1763387439912,-151.0,0.000368,2]
[394217899,1763387439921,-151.0,0.000368,2]
[394217900,1763387439931,-151.0,0.000368,2]
[394217901,1763387439940,-151.0,0.000368,2]
[394217902,1763387439950,-151.0,0.000368,2]
[394217903,1763387439959,-151.0,0.000368,2]
[394217904,1763387439968,-151.0,0.000368,2]
[394217905,1763387439979,-151.0,0.000368,2]
[394217906,1763387439988,-151.0,0.000368,2]
[394217907,1763387439997,-151.0,0.000368,2]
[394217908,1763387440006,-151.0,0.000368,2]
[394217909,1763387440015,-324.55,0.00036816,2]
[394217910,1763387440026,-5000.0,0.00036816,2]
[394217911,1763387440035,-826.858,0.00036822,2]
[394217912,1763387440045,-670.662,0.00036822,2]
[394217913,1763387440055,-400.575,0.00036822,2]
[394217914,1763387440064,-1598.0,0.00036822,2]
[394217915,1763387440073,-821.0,0.00036822,2]
[394217916,1763387440083,-5153.24,0.00036822,2]
[394217917,1763387440092,-560.0,0.00036822,2]
[394217918,1763387440102,-1604.0,0.00036822,2]
[394217919,1763387440111,-150.0,0.00036839,7]
[394217920,1763387440121,-150.0,0.00036839,7]
[394217921,1763387440130,-1000.0,0.00036856,2]
[394217922,1763387440140,-150.0,0.00036865,7]
[394217923,1763387440150,-150.0,0.00036869,7]
[394217924,1763387440159,-500.66455668,0.00036873,5]
[394217925,1763387440167,-150.0,0.00036877,7]
[394217926,1763387440176,-352.665,0.00036888,7]
[394217927,1763387440185,-150.0,0.0003689,7]
[394217928,1763387440195,-150.0,0.00036897,7]
[394217929,1763387440205,-150.0,0.00036919,7]
[394217930,1763387440214,-150.0,0.00036924,7]
[394217931,1763387440223,-150.0,0.00036943,7]
[394217932,1763387440233,-150.0,0.00036957,7]
[394217933,1763387440242,-150.0,0.00036966,7]
[394217934,1763387440252,-150.0,0.00036989,7]
[394217935,1763387440264,-150.0,0.00037009,7]
[394217936,1763387440275,-150.0,0.00037021,7]
[394217937,1763387440285,-150.0,0.00037043,7]
[394217938,1763387440295,-150.0,0.00037046,7]
[394217939,1763387440305,-150.0,0.0003707,7]
[394217940,1763387440315,-386.401,0.00037078,47]
[394217941,1763387440325,-150.0,0.00037093,7]
[394217942,1763387440335,-150.0,0.00037099,7]
[394217943,1763387440344,-150.0,0.00037101,7]
[394217944,1763387440354,-150.0,0.00037135,7]
[394217945,1763387440365,-150.0,0.00037157,7]
[394217946,1763387440376,-150.0,0.00037157,7]
[394217947,1763387440392,-150.0,0.00037176,7]
[394217948,1763387440403,-150.0,0.00037178,7]
[394217949,1763387440412,-150.0,0.00037195,7]
[394217950,1763387440423,-181.61613088,0.000372,120]
[394217951,1763387440433,-875.25592513,0.00037202,2]
[394217952,1763387440443,-161.38,0.00037207,2]
[394217953,1763387440453,-150.0,0.00037213,7]
[394217954,1763387440464,-150.0,0.00037223,7]
[394217955,1763387440474,-150.0,0.00037243,7]
[394217956,1763387440484,-150.0,0.00037254,7]
[394217957,1763387440494,-150.0,0.00037263,7]
[394217958,1763387440505,-150.0,0.00037312,7]
[394217959,1763387440514,-150.0,0.00037325,7]
[394217960,1763387440526,-150.0,0.00037332,7]
[394217961,1763387440535,-150.0,0.00037347,7]
[394217962,1763387440545,-150.0,0.00037347,7]
[394217963,1763387440554,-150.0,0.00037347,7]
[394217964,1763387440564,-150.0,0.00037347,7]
[394217965,1763387440572,-150.0,0.00037347,7]
[394217966,1763387440582,-219.57186935,0.00037388,2]
[394217967,1763387440591,-1055.63,0.00037391,5]
[394217968,1763387440602,-150.0,0.00037395,7]
[394217969,1763387440611,-150.0,0.00037401,7]
[394217970,1763387440621,-150.0,0.0003741,7]
[394217971,1763387440630,-150.0,0.00037417,7]
[394217972,1763387440639,-150.0,0.00037432,7]
[394217973,1763387440648,-150.0,0.00037437,7]
[394217974,1763387440658,-207.27,0.00037438,2]
[394217975,1763387440667,-1004.63,0.0003744,2]
[394217976,1763387440677,-150.0,0.00037474,7]
[394217977,1763387440686,-150.0,0.00037487,7]
[394217978,1763387440696,-150.0,0.00037489,7]
[394217979,1763387440705,-150.0,0.000375,7]
[394217980,1763387440714,-150.0,0.00037517,7]
[394217981,1763387440724,-390.15704,0.0003752,2]
[394217982,1763387440734,-150.0,0.00037538,7]
[394217983,1763387440743,-150.0,0.00037549,7]
[394217984,1763387440753,-150.0,0.00037565,7]
[394217985,1763387440763,-150.0,0.00037578,7]
[394217986,1763387440773,-150.0,0.0003759,7]
[394217987,1763387440782,-150.0,0.00037601,7]
[394217988,1763387440792,-150.0,0.00037633,7]
[394217989,1763387440801,-150.0,0.00037643,7]
[394217990,1763387440811,-280.318,0.00037643,2]
[394217991,1763387440820,-5519.81786812,0.00037644,2]
[394217992,1763387440829,-7020.07505986,0.00037644,2]
[394217993,1763387440839,-150.0,0.00037652,7]
[394217994,1763387440858,-5000.0,0.00037654,30]
[394217995,1763387440867,-357.7224,0.00037654,2]
[394217996,1763387440877,-371.59416484,0.00037654,2]
[394217997,1763387440887,-180.92455836,0.00037654,15]
[394217998,1763387440896,-150.0,0.00037661,7]
[394217999,1763387440907,-150.0,0.00037666,7]
[394218000,1763387440917,-219.57186936,0.0003768,2]
[394218001,1763387440928,-150.0,0.00037686,7]
[394218002,1763387441179,-5519.81786807,0.00037688,2]
[394218003,1763387441190,-7020.07505984,0.00037688,2]
[394218004,1763387441200,-150.0,0.00037721,7]
[394218005,1763387441210,-150.0,0.00037728,7]
[394218006,1763387441220,-5519.81786807,0.00037731,2]
[394218007,1763387441230,-7020.07505984,0.00037731,2]
[394218008,1763387441240,-60546.5718628,0.00037734,4]
[394218009,1763387441251,-393552.717108,0.00037744,4]
[394218010,1763387441261,-240.13752376,0.00037744,2]
[394218011,1763387441271,-760000.0,0.00037754,2]
[394218012,1763387441283,-151.0,0.00037754,31]
[394218013,1763387441294,-151.0,0.00037754,31]
[394218014,1763387441306,-151.0,0.00037754,31]
[394218015,1763387441317,-151.0,0.00037754,31]
[394218016,1763387441328,-151.0,0.00037754,31]
[394218017,1763387441338,-151.0,0.00037754,31]
[394218018,1763387441351,-151.823225,0.00037754,31]
[394218019,1763387441362,-151.0,0.00037754,31]
[394218020,1763387441371,-151.0,0.00037754,10]
[394218021,1763387441382,-153.729362,0.00037754,31]
[394218022,1763387441392,-157.522982,0.00037754,31]
[394218023,1763387441404,-157.522982,0.00037754,31]
[394218024,1763387441413,-157.522982,0.00037754,31]
[394218025,1763387441423,-157.522982,0.00037754,31]
[394218026,1763387441433,-151.0,0.00037754,31]
[394218027,1763387441443,-151.0,0.00037754,31]
[394218028,1763387441453,-151.0,0.00037754,31]
[394218029,1763387441468,-151.0,0.00037754,31]
[394218030,1763387441489,-151.0,0.00037754,31]
[394218031,1763387441506,-151.0,0.00037754,31]
[394218032,1763387441517,-151.0,0.00037754,31]
[394218033,1763387441530,-151.0,0.00037754,31]
[394218034,1763387441540,-151.0,0.00037754,31]
[394218035,1763387441549,-151.0,0.00037754,31]
[394218036,1763387441559,-154.39145,0.00037754,31]
[394218037,1763387441570,-151.0,0.00037754,31]
[394218038,1763387441582,-151.0,0.00037754,31]
[394218039,1763387441591,-441.434822,0.00037754,31]
[394218040,1763387441600,-219.964726,0.00037754,31]
[394218041,1763387441609,-441.434822,0.00037754,31]
[394218042,1763387441619,-219.964726,0.00037754,31]
[394218043,1763387441628,-441.434822,0.00037754,31]
[394218044,1763387441638,-441.434822,0.00037754,31]
[394218045,1763387441648,-219.964726,0.00037754,31]
[394218046,1763387441657,-151.0,0.00037754,31]
[394218047,1763387441667,-151.0,0.00037754,31]
[394218048,1763387441676,-219.964726,0.00037754,31]
[394218049,1763387441686,-151.0,0.00037754,31]
[394218050,1763387441696,-151.0,0.00037754,31]
[394218051,1763387441706,-151.0,0.00037754,31]
[394218052,1763387441715,-179.04453,0.00037754,31]
[394218053,1763387441725,-345.982356,0.00037754,31]
[394218054,1763387441735,-151.0,0.00037754,31]
[394218055,1763387441746,-151.0,0.00037754,31]
[394218056,1763387441755,-179.04453,0.00037754,31]
[394218057,1763387441765,-345.982356,0.00037754,31]
[394218058,1763387441777,-523.970185,0.00037754,31]
[394218059,1763387441787,-151.0,0.00037754,31]
[394218060,1763387441797,-179.04453,0.00037754,31]
[394218061,1763387441807,-345.982356,0.00037754,31]
[394218062,1763387441817,-179.04453,0.00037754,31]
[394218063,1763387441827,-523.970185,0.00037754,31]
[394218064,1763387441837,-345.982356,0.00037754,31]
[394218065,1763387441847,-151.0,0.00037754,31]
[394218066,1763387441857,-523.970185,0.00037754,31]
[394218067,1763387441867,-523.970185,0.00037754,31]
[394218068,1763387441876,-151.0,0.00037754,31]
[394218069,1763387441886,-151.0,0.00037754,31]
[394218070,1763387441895,-151.0,0.00037754,31]
[394218071,1763387441906,-151.0,0.00037754,31]
[394218072,1763387441915,-151.0,0.00037754,31]
[394218073,1763387441925,-151.0,0.00037754,31]
[394218074,1763387441934,-151.0,0.00037754,31]
[394218075,1763387441943,-151.0,0.00037754,31]
[394218076,1763387441953,-151.0,0.00037754,28]
[394218077,1763387441962,-151.0,0.00037754,28]
[394218078,1763387441971,-308.192222,0.00037754,31]
[394218079,1763387441980,-151.0,0.00037754,31]
[394218080,1763387441989,-151.0,0.00037754,31]
[394218081,1763387441999,-308.192222,0.00037754,31]
[394218082,1763387442008,-151.0,0.00037754,31]
[394218083,1763387442018,-308.192222,0.00037754,31]
[394218084,1763387442029,-151.0,0.00037754,31]
[394218085,1763387442039,-308.192222,0.00037754,31]
[394218086,1763387442048,-151.0,0.00037754,31]
[394218087,1763387442058,-151.0,0.00037754,31]
[394218088,1763387442067,-151.0,0.00037754,31]
[394218089,1763387442076,-151.0,0.00037754,31]
[394218090,1763387442086,-151.0,0.00037754,31]
[394218091,1763387442096,-151.0,0.00037754,31]
[394218092,1763387442106,-151.0,0.00037754,31]
[394218093,1763387442116,-151.0,0.00037754,31]
[394218094,1763387442126,-343.164068,0.00037754,30]
[394218095,1763387442135,-151.0,0.00037754,31]
[394218096,1763387442144,-343.164068,0.00037754,30]
[394218097,1763387442155,-343.164068,0.00037754,30]
[394218098,1763387442165,-164.271193,0.00037754,31]
[394218099,1763387442175,-343.164068,0.00037754,30]
[394218100,1763387442185,-181.08958,0.00037754,31]
[394218101,1763387442195,-181.08958,0.00037754,31]
[394218102,1763387442204,-181.08958,0.00037754,31]
[394218103,1763387442214,-181.08958,0.00037754,31]
[394218104,1763387442223,-151.0,0.00037754,31]
[394218105,1763387442233,-167.405602,0.00037754,31]
[394218106,1763387442244,-151.0,0.00037754,31]
[394218107,1763387442253,-151.0,0.00037754,31]
[394218108,1763387442263,-151.0,0.00037754,31]
[394218109,1763387442274,-151.0,0.00037754,31]
[394218110,1763387442283,-151.949131,0.00037754,31]
[394218111,1763387442293,-151.0,0.00037754,31]
[394218112,1763387442303,-151.0,0.00037754,31]
[394218113,1763387442313,-151.0,0.00037754,31]
[394218115,1763387442323,-151.0,0.00037754,31]
[394218117,1763387442334,-151.0,0.00037754,31]
[394218119,1763387442344,-150.0,0.00037755,7]
[394218121,1763387442353,-150.0,0.00037763,7]
[394218122,1763387442362,-150.0,0.00037771,7]
[394218124,1763387442371,-161.49360073,0.00037773,5]
[394218126,1763387442382,-500.0,0.00037773,5]
[394218129,1763387442395,-500.0,0.00037773,2]
[394218131,1763387442405,-150.0,0.00037773,7]
[394218133,1763387442414,-5519.81786807,0.00037775,2]
[394218135,1763387442424,-7020.07505984,0.00037775,2]
[394218137,1763387442435,-343.62819621,0.00037789,2]
[394218139,1763387442444,-1000.0,0.00037794,2]
[394218141,1763387442453,-150.0,0.00037798,7]
[394218144,1763387442462,-150.0,0.00037805,7]
[394218146,1763387442473,-668.92105046,0.00037808,2]
[394218148,1763387442483,-30273.2859314,0.00037808,4]
[394218150,1763387442492,-5519.81786807,0.00037818,2]
[394218152,1763387442502,-7020.07505984,0.00037818,2]
[394218154,1763387442514,-150.0,0.00037844,7]
[394218155,1763387442525,-150.0,0.00037856,7]
[394218156,1763387442535,-30273.2859314,0.00037859,4]
[394218157,1763387442544,-5519.81786807,0.00037862,2]
[394218159,1763387442554,-7020.07505984,0.00037862,2]
[394218161,1763387442564,-154.56252507,0.00037863,30]
[394218163,1763387442573,-30273.2859314,0.00037869,4]
[394218165,1763387442583,-30273.2859314,0.00037869,4]
[394218167,1763387442592,-150.0,0.00037871,7]
[394218169,1763387442602,-30273.2859314,0.00037872,4]
[394218171,1763387442611,-500.96249559,0.00037873,5]
[394218173,1763387442621,-171.89906706,0.00037873,5]
[394218175,1763387442631,-503.32747912,0.00037873,5]
[394218177,1763387442640,-500.0,0.00037873,5]
[394218179,1763387442650,-228.14650797,0.00037873,5]
[394218181,1763387442659,-500.0,0.00037873,5]
[394218183,1763387442668,-501.0314421,0.00037873,5]
[394218184,1763387442678,-500.0,0.00037873,5]
[394218185,1763387442687,-150.0,0.00037876,7]
[394218187,1763387442697,-189.883674,0.00037879,31]
[394218188,1763387442707,-151.0,0.00037879,31]
[394218189,1763387442716,-151.0,0.00037879,31]
[394218190,1763387442726,-151.0,0.00037879,31]
[394218191,1763387442735,-151.0,0.00037879,31]
[394218192,1763387442744,-151.0,0.00037879,31]
[394218193,1763387442754,-151.0,0.00037879,10]
[394218194,1763387442763,-157.522982,0.00037879,31]
[394218195,1763387442774,-157.522982,0.00037879,31]
[394218196,1763387442783,-157.522982,0.00037879,31]
[394218197,1763387442792,-157.522982,0.00037879,31]
[394218198,1763387442802,-151.0,0.00037879,31]
[394218199,1763387442812,-151.980256,0.00037879,31]
[394218200,1763387442821,-151.0,0.00037879,31]
[394218201,1763387442831,-151.0,0.00037879,31]
[394218202,1763387442840,-151.0,0.00037879,31]
[394218203,1763387442849,-151.0,0.00037879,31]
[394218204,1763387442858,-151.0,0.00037879,31]
[394218205,1763387442867,-151.0,0.00037879,31]
[394218206,1763387442877,-151.0,0.00037879,31]
[394218207,1763387442886,-151.0,0.00037879,31]
[394218208,1763387442895,-441.434822,0.00037879,31]
[394218209,1763387442905,-219.964726,0.00037879,31]
[394218211,1763387442914,-441.434822,0.00037879,31]
[394218212,1763387442923,-219.964726,0.00037879,31]
[394218214,1763387442932,-441.434822,0.00037879,31]
[394218216,1763387442941,-219.964726,0.00037879,31]
[394218217,1763387442950,-151.0,0.00037879,31]
[394218218,1763387442960,-441.434822,0.00037879,31]
[394218219,1763387442969,-151.0,0.00037879,31]
[394218220,1763387442979,-219.964726,0.00037879,31]
[394218221,1763387442988,-151.0,0.00037879,31]
[394218222,1763387442997,-151.0,0.00037879,31]
[394218223,1763387443007,-151.0,0.00037879,31]
[394218224,1763387443016,-179.04453,0.00037879,31]
[394218225,1763387443027,-345.982356,0.00037879,31]
[394218226,1763387443036,-179.04453,0.00037879,31]
[394218227,1763387443045,-151.0,0.00037879,31]
[394218228,1763387443054,-345.982356,0.00037879,31]
[394218229,1763387443064,-523.970185,0.00037879,31]
[394218230,1763387443073,-179.04453,0.00037879,31]
[394218231,1763387443082,-345.982356,0.00037879,31]
[394218232,1763387443091,-179.04453,0.00037879,31]
[394218233,1763387443100,-523.970185,0.00037879,31]
[394218234,1763387443109,-345.982356,0.00037879,31]
[394218235,1763387443119,-151.0,0.00037879,31]
[394218236,1763387443128,-523.970185,0.00037879,31]
[394218237,1763387443138,-523.970185,0.00037879,31]
[394218238,1763387443147,-151.0,0.00037879,31]
[394218239,1763387443156,-151.0,0.00037879,31]
[394218240,1763387443166,-151.0,0.00037879,31]
[394218241,1763387443175,-151.0,0.00037879,31]
[394218242,1763387443185,-229.834132,0.00037879,31]
[394218243,1763387443195,-151.0,0.00037879,31]
[394218244,1763387443204,-151.0,0.00037879,28]
[394218245,1763387443214,-151.0,0.00037879,28]
[394218246,1763387443224,-308.192222,0.00037879,31]
[394218247,1763387443234,-308.192222,0.00037879,31]
[394218248,1763387443243,-151.0,0.00037879,31]
[394218249,1763387443252,-308.192222,0.00037879,31]
[394218250,1763387443262,-152.232353,0.00037879,31]
[394218251,1763387443271,-308.192222,0.00037879,31]
[394218252,1763387443281,-151.0,0.00037879,31]
[394218253,1763387443291,-151.0,0.00037879,31]
[394218254,1763387443300,-151.0,0.00037879,31]
[394218255,1763387443309,-151.0,0.00037879,31]
[394218256,1763387443319,-151.0,0.00037879,31]
[394218257,1763387443328,-151.0,0.00037879,31]
[394218258,1763387443337,-343.164068,0.00037879,30]
[394218259,1763387443347,-151.0,0.00037879,31]
[394218260,1763387443357,-343.164068,0.00037879,30]
[394218261,1763387443367,-343.164068,0.00037879,30]
[394218262,1763387443377,-343.164068,0.00037879,30]
[394218263,1763387443386,-181.08958,0.00037879,31]
[394218264,1763387443398,-181.08958,0.00037879,31]
[394218265,1763387443407,-181.08958,0.00037879,31]
[394218266,1763387443416,-181.08958,0.00037879,31]
[394218267,1763387443426,-151.0,0.00037879,31]
[394218268,1763387443436,-151.0,0.00037879,31]
[394218269,1763387443445,-151.0,0.00037879,31]
[394218270,1763387443455,-151.0,0.00037879,31]
[394218271,1763387443465,-151.0,0.00037879,31]
[394218272,1763387443476,-151.0,0.00037879,31]
[394218273,1763387443485,-151.0,0.00037879,31]
[394218274,1763387443495,-567.38789,0.00037879,31]
[394218275,1763387443504,-151.0,0.00037879,31]
[394218276,1763387443514,-567.38789,0.00037879,31]
[394218277,1763387443525,-151.0,0.00037879,31]
[394218278,1763387443534,-567.38789,0.00037879,31]
[394218279,1763387443543,-567.38789,0.00037879,31]
[394218280,1763387443552,-151.0,0.00037879,31]
[394218281,1763387443561,-151.0,0.00037879,31]
[394218282,1763387443571,-151.0,0.00037879,31]
[394218283,1763387443580,-1271.946911,0.00037879,31]
[394218284,1763387443589,-255.174657,0.00037879,31]
[394218285,1763387443599,-159.688385,0.00037879,31]
[394218286,1763387443608,-1271.946911,0.00037879,31]
[394218287,1763387443617,-1271.946911,0.00037879,31]
[394218288,1763387443627,-1271.946911,0.00037879,31]
[394218289,1763387443636,-151.0,0.00037879,31]
[394218290,1763387443645,-151.0,0.00037879,31]
[394218291,1763387443655,-151.0,0.00037879,31]
[394218292,1763387443664,-151.0,0.00037879,31]
[394218293,1763387443673,-151.0,0.00037879,31]
[394218294,1763387443682,-151.0,0.00037879,31]
[394218295,1763387443692,-151.0,0.00037879,31]
[394218296,1763387443702,-151.0,0.00037879,31]
[394218297,1763387443711,-151.0,0.00037879,31]
[394218298,1763387443720,-151.0,0.00037879,31]
[394218299,1763387443730,-151.0,0.00037879,31]
[394218300,1763387443740,-347.547412,0.00037879,31]
[394218301,1763387443749,-347.547412,0.00037879,31]
[394218302,1763387443758,-151.0,0.00037879,31]
[394218303,1763387443767,-347.547412,0.00037879,31]
[394218304,1763387443778,-151.0,0.00037879,31]
[394218305,1763387443787,-1203.2381,0.0003788,2]
[394218306,1763387443796,-1135.97539979,0.00037881,2]
[394218307,1763387443805,-500.0,0.00037884,120]
[394218308,1763387443814,-150.0,0.00037885,7]
[394218309,1763387443823,-62532.4720397,0.00037889,2]
[394218310,1763387443833,-4522.48194,0.00037889,2]
[394218311,1763387443842,-3202.2201158,0.00037889,2]
[394218312,1763387443851,-65782.6079195,0.00037889,2]
[394218313,1763387443863,-1059.0521327,0.00037889,2]
[394218314,1763387443873,-10240.0786644,0.00037889,2]
[394218315,1763387443882,-63923.2169267,0.00037889,2]
[394218316,1763387443891,-151.0,0.00037889,31]
[394218317,1763387443900,-257.106462,0.00037889,31]
[394218318,1763387443910,-151.0,0.00037889,31]
[394218319,1763387443919,-282212.8867649,0.00037889,2]
[394218320,1763387443929,-151.0,0.00037889,31]
[394218321,1763387443938,-151.0,0.00037889,31]
[394218322,1763387443947,-151.0,0.00037889,10]
[394218323,1763387443956,-157.522982,0.00037889,31]
[394218324,1763387443966,-157.522982,0.00037889,31]
[394218325,1763387443975,-157.522982,0.00037889,31]
[394218326,1763387443984,-157.522982,0.00037889,31]
[394218327,1763387443993,-151.0,0.00037889,31]
[394218328,1763387444002,-151.0,0.00037889,31]
[394218329,1763387444011,-151.0,0.00037889,31]
[394218330,1763387444021,-151.0,0.00037889,31]
[394218331,1763387444032,-151.0,0.00037889,31]
[394218332,1763387444041,-151.0,0.00037889,31]
[394218333,1763387444050,-151.0,0.00037889,31]
[394218334,1763387444059,-151.0,0.00037889,31]
[394218335,1763387444068,-151.0,0.00037889,31]
[394218336,1763387444077,-151.0,0.00037889,31]
[394218337,1763387444086,-151.0,0.00037889,31]
[394218338,1763387444096,-151.0,0.00037889,31]
[394218339,1763387444105,-151.0,0.00037889,31]
[394218340,1763387444115,-212.502162,0.00037889,31]
[394218341,1763387444124,-206.73646,0.00037889,31]
[394218342,1763387444134,-441.434822,0.00037889,31]
[394218343,1763387444143,-441.434822,0.00037889,31]
[394218344,1763387444153,-219.964726,0.00037889,31]
[394218345,1763387444162,-441.434822,0.00037889,31]
[394218346,1763387444171,-219.964726,0.00037889,31]
[394218347,1763387444180,-441.434822,0.00037889,31]
[394218348,1763387444189,-219.964726,0.00037889,31]
[394218349,1763387444199,-441.434822,0.00037889,31]
[394218350,1763387444208,-441.434822,0.00037889,31]
[394218351,1763387444217,-219.964726,0.00037889,31]
[394218352,1763387444226,-219.964726,0.00037889,31]